bitfinex-derivatives/quotes_ETHF0:USTF0_20250904
["timestamp","ask_amount","ask_price","bid_price","bid_amount"]
[1756996967778,2.5004,4359.2,4359.1,1.4787]
[1756996967978,2.5004,4359.2,4359.1,2.8649174]
[1756996969574,2.5004,4359.2,4359.1,2.8128]
[1756996969778,1.7694,4359.2,4359.1,2.8128]
[1756996970077,2.5004,4359.2,4359.1,1.4787]
[1756996970275,2.5004,4359.2,4359.1,1.7157]
[1756996970975,1.0513,4359.4,4359.2,1.0971]
[1756996971179,2.5004,4359.4,4359.3,1.7157]
[1756996971479,2.5004,4359.4,4359.3,0.9721]
[1756996972077,2.5004,4359.4,4359.3,0.237]
[1756996972275,2.5004,4359.4,4359.3,0.9721]
[1756996972582,2.5004,4359.4,4359.3,1.7157]
[1756996973780,2.5004,4359.4,4359.3,0.237]
[1756996974279,0.7181,4358.9,4358.8,2.05248225]
[1756996974479,2.5004,4358.9,4358.8,0.237]
[1756996974976,1.0513,4358.8,4358.5,31.635]
[1756996975172,2.5004,4358.7,4358.6,0.237]
[1756996975373,1.0513,4358.6,4358.5,33.68748225]
[1756996975576,1.0513,4358.6,4358.5,31.872]
[1756996976476,2.5004,4358.6,4358.5,0.237]
[1756996976875,2.5004,4358.6,4358.3,2.05248225]
[1756996976876,1.4491,4358.4,4358.3,2.05248225]
[1756996977073,2.5004,4358.4,4358.3,0.237]
[1756996977580,2.5004,4358.4,4358.1,2.05248225]
[1756996977581,1.4491,4358.4,4358.1,2.05248225]
[1756996977883,1.4491,4358.4,4357.9,3.2078]
[1756996977884,2.5004,4358.3,4358.2,0.237]
[1756996979078,1.8896,4358.0,4357.9,3.2078]
[1756996979279,2.9409,4358.0,4357.9,3.4448]
[1756996979581,2.9409,4358.0,4357.7,0.237]
[1756996979582,1.4491,4357.8,4357.7,0.237]
[1756996979782,2.5004,4357.8,4357.7,1.7157]
[1756996980181,2.5004,4357.8,4357.7,2.8128]
[1756996980386,2.5004,4357.8,4357.7,1.7157]
[1756996980587,1.7694,4357.8,4357.7,2.8128]
[1756996980784,2.5004,4358.3,4358.2,0.7351]
[1756996981181,1.0513,4357.9,4357.3,3.2078]
[1756996981487,1.0513,4357.7,4357.4,2.8128]
[1756996981683,0.4405,4358.0,4357.5,1.0971]
[1756996981684,1.0513,4357.9,4357.5,1.0971]
[1756996981886,2.5004,4357.9,4357.8,0.7351]
[1756996982185,2.5004,4357.9,4357.8,1.7157]
[1756996982380,1.7694,4357.9,4357.8,2.8128]
[1756996982579,2.5004,4357.9,4357.8,1.7157]
[1756996982778,2.5004,4357.9,4357.4,1.0971]
[1756996982978,2.5004,4357.9,4357.8,0.237]
[1756996983881,1.4491,4357.4,4357.3,3.2078]
[1756996984185,1.7694,4357.4,4357.3,6.0206]
[1756996984380,1.4053,4357.8,4357.7,1.4787]
[1756996984582,1.4053,4357.8,4357.7,2.8128]
[1756996984792,3.1876,4357.8,4357.7,1.7157]
[1756996984973,2.4566,4357.8,4357.7,2.8128]
[1756996985580,0.6872,4357.8,4357.7,2.8128]
[1756996985784,2.4566,4357.8,4357.7,2.8128]
[1756996986081,3.4448,4358.9,4357.7,7.04228]
[1756996986082,1.0513,4358.6,4357.7,7.04228]
[1756996986282,1.0513,4358.6,4358.5,2.1495]
[1756996986474,2.5004,4358.6,4358.5,0.237]
[1756996986673,2.5004,4358.6,4358.5,1.7157]
[1756996986880,1.0513,4358.6,4358.5,2.3865]
[1756996987381,1.0513,4359.4,4358.8,2.1495]
[1756996987683,5.0974,4359.5,4359.4,0.7351]
[1756996987878,4.3664,4359.5,4359.4,1.4787]
[1756996988077,2.9409,4359.5,4359.4,1.4787]
[1756996988277,2.9409,4359.5,4359.4,2.1495]
[1756996988278,1.4918,4359.5,4359.4,2.1495]
[1756996988478,1.0513,4359.5,4359.4,2.1495]
[1756996988876,1.0513,4359.9,4359.4,2.1495]
[1756996989078,1.4918,4360.0,4359.5,0.6708]
[1756996989376,2.2099,4360.0,4359.9,1.4787]
[1756996989581,2.2099,4360.0,4359.9,0.237]
[1756996989582,2.9409,4360.0,4359.9,0.237]
[1756996990086,2.9409,4360.0,4359.9,0.9721]
[1756996990288,2.9409,4360.0,4359.9,0.237]
[1756996990987,2.9409,4360.0,4359.9,1.7157]
[1756996991585,2.9409,4360.0,4359.1,2.05248225]
[1756996991787,2.5004,4359.3,4359.2,0.9721]
[1756996992084,1.0513,4359.3,4359.2,1.7157]
[1756996992392,1.8638,4359.8,4359.7,1.4725]
[1756996992582,1.8638,4359.8,4359.7,1.7095]
[1756996993384,1.1289,4359.8,4359.7,2.3595]
[1756996993985,1.8638,4359.8,4359.7,2.3595]
[1756996994186,1.8638,4359.8,4359.7,1.7095]
[1756996995292,1.1289,4359.8,4359.7,2.3595]
[1756996996290,1.8638,4359.8,4359.7,2.3595]
[1756996996490,1.8638,4359.8,4359.7,1.7095]
[1756996996793,0.7349,4360.3,4360.2,1.4725]
[1756996997092,1.8638,4360.3,4360.2,1.7085]
[1756996997684,2.5674,4360.3,4360.2,1.7085]
[1756996999588,1.8638,4360.3,4360.2,1.7085]
[1756997000082,3.6483,4361.0,4360.9,2.1159]
[1756997000083,1.1289,4361.0,4360.9,2.1159]
[1756997000393,1.1289,4361.0,4360.9,2.3519]
[1756997001395,2.2963,4361.0,4360.9,1.7085]
[1756997002200,2.2963,4361.0,4360.9,1.4725]
[1756997002390,2.9999,4361.0,4360.9,1.4725]
[1756997002591,1.871,4361.0,4360.9,0.236]
[1756997002890,2.9999,4361.0,4360.9,0.236]
[1756997003393,2.9999,4361.0,4360.9,1.7085]
[1756997003700,2.9999,4361.0,4360.9,0.236]
[1756997004998,2.9999,4361.0,4360.9,0.9461]
[1756997005703,2.9999,4361.0,4360.9,0.236]
[1756997006601,0.7349,4360.1,4360.0,6.17222695]
[1756997006799,1.8638,4360.1,4360.0,3.52498225]
[1756997007000,2.5674,4360.1,4360.0,0.7101]
[1756997007198,2.5674,4360.1,4360.0,0.236]
[1756997007593,2.5674,4360.1,4360.0,0.9461]
[1756997007897,2.5674,4360.1,4360.0,1.4725]
[1756997008102,2.5674,4360.1,4360.0,0.9461]
[1756997008300,2.5674,4360.1,4360.0,0.236]
[1756997008902,1.4385,4359.6,4359.5,0.7101]
[1756997009097,2.5674,4359.6,4359.5,0.9461]
[1756997009702,2.5674,4359.6,4359.5,0.236]
[1756997010994,2.5674,4359.6,4359.2,0.23382594]
[1756997011200,2.5674,4359.3,4359.2,0.7101]
[1756997011498,1.4385,4359.1,4358.9,2.05248225]
[1756997011701,2.9999,4359.0,4358.9,0.7101]
[1756997012095,1.1289,4359.4,4358.9,2.3519]
[1756997012295,1.5614,4359.0,4358.9,2.3519]
[1756997012804,1.1289,4359.0,4358.9,4.40438225]
[1756997012997,1.1289,4359.0,4358.9,2.3519]
[1756997013605,2.9999,4359.0,4358.9,1.7085]
[1756997013797,2.9999,4359.0,4358.9,1.4725]
[1756997014005,2.9999,4359.0,4358.9,3.75863343]
[1756997014203,2.9999,4359.0,4358.9,1.7085]
[1756997014997,2.9999,4359.0,4358.9,2.2875964]
[1756997015198,2.9999,4359.0,4358.9,0.236]
[1756997015398,2.9999,4359.0,4358.9,3.7600964]
[1756997015603,2.2963,4359.0,4358.9,4.4034964]
[1756997015800,2.2963,4359.0,4358.9,1.7085]
[1756997016101,2.2963,4359.5,4359.4,1.4725]
[1756997016402,2.9999,4359.5,4359.4,0.236]
[1756997016599,1.871,4359.5,4359.4,2.29029079]
[1756997016800,1.871,4359.5,4359.3,2.05429079]
[1756997017004,1.871,4359.5,4359.1,2.05429079]
[1756997017005,1.4385,4359.4,4359.1,2.05429079]
[1756997017204,2.5674,4359.3,4359.2,0.236]
[1756997017601,1.1289,4359.2,4359.1,2.05429079]
[1756997017803,2.5674,4359.2,4359.1,2.29029079]
[1756997018897,2.5674,4359.2,4359.1,0.236]
[1756997020599,1.1289,4359.1,4359.0,2.05429079]
[1756997020900,2.9999,4359.0,4358.9,2.05429079]
[1756997021199,2.5674,4358.4,4358.3,2.86951512]
[1756997021400,0.7349,4358.1,4358.0,5.43951512]
[1756997021701,4.6463,4358.9,4358.1,1.0975]
[1756997021909,1.1289,4358.8,4358.2,1.0975]
[1756997022108,2.5674,4358.8,4358.7,2.57]
[1756997022405,2.5674,4358.8,4358.7,2.806]
[1756997022600,1.0722,4359.9,4358.8,1.1033]
[1756997022910,2.5613,4359.9,4359.3,1.1033]
[1756997023109,2.5613,4359.9,4359.4,1.3393]
[1756997023606,2.9789,4359.5,4358.9,1.1033]
[1756997023794,1.9067,4359.5,4358.5,4.41961512]
[1756997023998,0.7354,4358.7,4358.6,1.668]
[1756997024299,0.7354,4359.0,4358.9,1.432]
[1756997024508,0.7354,4359.0,4358.9,1.668]
[1756997024808,1.4891,4359.0,4358.9,1.668]
[1756997025008,1.4891,4359.0,4358.9,2.7713]
[1756997025307,2.5613,4359.0,4358.9,2.7713]
[1756997026301,2.5613,4359.0,4358.9,2.0441]
[1756997027003,5.0154,4359.6,4359.5,0.7048]
[1756997027201,5.7691,4359.6,4359.5,0.9408]
[1756997027509,5.7691,4359.6,4359.5,0.236]
[1756997028101,5.7691,4359.6,4359.5,0.9408]
[1756997028401,1.4891,4359.6,4359.5,3.2181]
[1756997029605,0.4176,4359.5,4359.0,0.4468]
[1756997029820,1.4891,4359.1,4359.0,2.5353]
[1756997030106,1.4891,4359.1,4359.0,3.2181]
[1756997030605,2.5613,4359.1,4359.0,2.28906505]
[1756997031010,1.0722,4359.0,4358.8,2.05306505]
[1756997031202,1.9067,4359.0,4358.8,2.05306505]
[1756997031401,1.0722,4358.8,4358.7,2.05306505]
[1756997031612,2.5613,4358.8,4358.7,4.09716505]
[1756997031904,2.5613,4358.8,4358.7,2.99386505]
[1756997032210,2.5613,4358.8,4358.7,0.9408]
[1756997032512,6.5613,4358.8,4358.7,0.236]
[1756997033704,2.5613,4358.7,4358.6,0.236]
[1756997034407,1.0722,4358.6,4358.1,31.653]
[1756997034604,1.4891,4358.2,4358.1,31.653]
[1756997034911,1.4891,4358.2,4358.1,31.889]
[1756997034912,2.5613,4358.2,4358.1,31.889]
[1756997035800,2.5613,4358.2,4358.1,31.653]
[1756997036009,2.5613,4358.2,4358.1,31.889]
[1756997036209,2.5613,4358.2,4358.1,31.653]
[1756997036405,2.5613,4358.2,4358.1,31.889]
[1756997036798,6.79076,4358.2,4358.0,0.001]
[1756997036999,5.7691,4358.1,4358.0,0.001]
[1756997037201,1.0722,4357.3,4357.2,3.2078]
[1756997037404,2.5613,4357.3,4357.2,3.4438]
[1756997037604,0.4176,4357.0,4356.9,2.05306505]
[1756997037802,1.9067,4357.0,4356.9,2.28906505]
[1756997038004,2.5613,4357.0,4356.9,4.09716505]
[1756997038203,2.5613,4357.0,4356.9,2.7713]
[1756997039814,2.5613,4357.0,4356.9,0.236]
[1756997040310,1.4891,4357.0,4356.9,0.236]
[1756997040515,2.5613,4357.0,4356.9,2.7713]
[1756997040712,2.5613,4357.0,4356.9,2.0441]
[1756997040917,2.9789,4357.0,4356.9,0.236]
[1756997041722,2.9789,4357.0,4356.9,0.9408]
[1756997042115,2.9789,4357.0,4356.9,0.236]
[1756997042515,2.5613,4357.0,4356.9,0.9408]
[1756997042716,2.5613,4357.0,4356.9,2.0441]
[1756997042918,1.4891,4357.0,4356.9,2.7713]
[1756997043215,2.5613,4357.0,4356.9,2.7713]
[1756997044018,1.4891,4357.0,4356.9,2.7713]
[1756997044609,0.7354,4357.0,4356.9,2.7713]
[1756997044914,1.4891,4357.0,4356.9,2.7713]
[1756997045108,2.5613,4357.0,4356.9,2.7713]
[1756997046315,2.5613,4357.0,4356.5,0.4468]
[1756997046316,2.9789,4357.0,4356.5,1.5501]
[1756997046513,2.5613,4356.6,4356.5,2.2549]
[1756997046818,2.5613,4356.6,4356.5,2.0441]
[1756997047217,2.5613,4356.6,4356.5,2.7713]
[1756997047614,1.6656,4356.9,4356.5,3.2181]
[1756997047814,2.401,4356.9,4356.8,1.432]
[1756997048120,2.401,4356.9,4356.8,2.7713]
[1756997048721,1.6656,4356.9,4356.8,2.7713]
[1756997049920,1.0722,4357.5,4357.0,0.4468]
[1756997050120,0.7354,4357.2,4357.1,1.668]
[1756997050720,2.5613,4358.0,4357.9,0.7048]
[1756997050926,1.0722,4358.4,4358.0,0.4468]
[1756997051126,2.5613,4358.4,4358.3,2.5353]
[1756997051316,2.5613,4358.4,4358.3,2.7713]
[1756997051517,1.4891,4358.4,4358.3,2.7713]
[1756997052026,2.5613,4358.4,4358.3,0.236]
[1756997052728,2.5613,4358.4,4358.2,0.236]
[1756997052918,4.1868,4358.3,4358.2,0.236]
[1756997053123,5.2469,4358.3,4358.2,0.236]
[1756997054423,5.2469,4358.3,4357.5,0.4468]
[1756997054424,1.4108,4357.5,4357.4,1.6967]
[1756997054618,2.879,4357.5,4357.0,3.51966505]
[1756997054822,1.0601,4357.4,4357.1,1.2558]
[1756997055018,2.4709,4357.2,4357.1,1.6967]
[1756997055220,2.4709,4357.2,4357.1,2.6225]
[1756997055421,2.4709,4357.2,4357.1,3.77269034]
[1756997055621,0.7072,4357.2,4357.1,3.77269034]
[1756997057417,2.4709,4357.2,4357.1,3.77269034]
[1756997057827,0.7072,4357.2,4357.1,3.77269034]
[1756997058015,2.4709,4357.2,4357.1,2.3865]
[1756997058219,2.4709,4357.2,4357.1,3.77269034]
[1756997059423,2.4709,4357.2,4357.1,3.53669034]
[1756997059629,2.4709,4357.2,4357.1,0.236]
[1756997060129,0.7072,4356.7,4356.6,3.53669034]
[1756997060429,2.4709,4356.7,4356.6,5.58975539]
[1756997060728,0.7072,4356.7,4356.6,5.82575539]
[1756997061430,0.7072,4356.7,4356.6,5.82987585]
[1756997061924,1.4108,4356.7,4356.6,5.82987585]
[1756997062124,2.4709,4356.7,4356.6,2.73408551]
[1756997062335,2.4709,4356.7,4356.6,0.9129]
[1756997062623,2.4709,4356.7,4356.4,2.05718551]
[1756997062624,1.0601,4356.6,4356.4,2.05718551]
[1756997062828,2.4709,4356.6,4356.5,0.9129]
[1756997063025,2.4709,4356.6,4356.5,1.6967]
[1756997063229,1.0601,4356.5,4356.4,2.05718551]
[1756997063430,2.4709,4356.5,4356.4,0.9129]
[1756997063726,1.0601,4356.4,4356.3,2.05718551]
[1756997063933,2.4709,4356.4,4356.3,0.236]
[1756997064829,3.0748,4356.3,4356.2,0.6769]
[1756997065025,4.1349,4356.3,4356.2,0.9129]
[1756997065527,4.1349,4356.3,4356.2,2.6225]
[1756997065730,3.0748,4356.3,4356.2,2.6225]
[1756997065924,2.3712,4356.3,4356.2,2.6225]
[1756997066129,1.664,4356.3,4356.2,4.67968551]
[1756997066733,1.664,4356.3,4356.2,2.6225]
[1756997066929,3.0748,4356.3,4356.2,2.3865]
[1756997067128,4.1349,4356.3,4356.2,4.68151402]
[1756997067337,4.1349,4356.3,4356.2,2.6225]
[1756997067836,2.4709,4356.3,4356.2,2.6225]
[1756997068129,1.4108,4356.3,4356.2,4.44551402]
[1756997068432,1.4108,4356.3,4356.2,4.68151402]
[1756997068830,2.4709,4356.3,4356.2,4.68151402]
[1756997069332,2.4709,4356.3,4356.2,2.6225]
[1756997069532,1.4108,4356.3,4356.2,2.6225]
[1756997069727,2.4709,4356.3,4356.2,1.2558]
[1756997070123,1.0601,4356.2,4356.1,2.05901402]
[1756997070324,1.0601,4356.1,4355.8,3.31481402]
[1756997070535,1.4108,4355.9,4355.8,2.6225]
[1756997072229,2.4709,4355.9,4355.8,2.6225]
[1756997072528,0.7072,4355.9,4355.8,2.6225]
[1756997072929,1.0601,4356.3,4356.0,0.4298]
[1756997073229,0.1147,4356.4,4356.3,1.0198]
[1756997073532,0.1147,4356.4,4356.3,3.77269034]
[1756997073727,0.1147,4356.4,4356.3,5.83170436]
[1756997073930,0.1147,4356.4,4356.3,3.08469034]
[1756997074334,0.1147,4356.4,4356.3,1.9345]
[1756997074538,0.1147,4356.4,4356.3,3.08469034]
[1756997075229,0.1147,4356.4,4356.3,8.46443068]
[1756997075424,8.794,4359.5,4356.3,8.13263068]
[1756997075634,2.4709,4357.9,4357.8,0.6769]
[1756997076733,0.05,4358.3,4357.7,0.236]
[1756997076734,2.4523,4357.8,4357.7,0.236]
[1756997076936,4.806,4357.8,4357.7,0.9129]
[1756997077232,4.806,4357.8,4357.7,1.6027]
[1756997077532,1.0601,4357.3,4357.2,2.05664814]
[1756997077738,3.62109034,4357.3,4357.0,0.236]
[1756997078627,2.4709,4357.3,4357.0,0.236]
[1756997078830,1.4108,4357.1,4357.0,0.236]
[1756997079033,2.4709,4357.1,4357.0,0.236]
[1756997080038,2.4709,4356.9,4356.8,0.236]
[1756997080235,2.4709,4356.9,4356.8,0.9129]
[1756997080437,2.4709,4356.9,4356.8,1.6027]
[1756997080739,1.0601,4356.8,4356.5,2.05664814]
[1756997080937,2.4709,4356.6,4356.5,2.05664814]
[1756997081130,1.7553,4357.0,4356.6,1.0198]
[1756997081329,3.1661,4357.0,4356.9,1.3667]
[1756997081529,2.758,4357.0,4356.9,2.6225]
[1756997081731,4.2262,4357.0,4356.9,1.6027]
[1756997081939,4.2262,4357.0,4356.9,0.9129]
[1756997082348,2.879,4357.0,4356.9,1.6027]
[1756997082643,2.879,4357.0,4356.9,0.236]
[1756997082841,1.4682,4357.0,4356.9,0.236]
[1756997084747,0.4328,4357.0,4356.9,0.236]
[1756997085244,2.1481,4357.0,4356.9,0.236]
[1756997085445,2.8627,4357.0,4356.9,0.236]
[1756997085742,1.3958,4356.8,4356.0,35.75622334]
[1756997085947,1.7153,4356.7,4356.1,0.46554]
[1756997086149,1.7153,4356.7,4356.1,0.50549025]
[1756997086339,1.114,4356.5,4356.2,0.22955]
[1756997086542,1.0341,4356.4,4356.3,0.236]
[1756997086840,1.0341,4356.8,4356.3,4.46555]
[1756997087047,1.0341,4356.8,4356.4,4.08853222]
[1756997087246,1.0341,4356.9,4356.4,4.08853222]
[1756997087436,1.0341,4356.9,4356.8,2.88220947]
[1756997087640,1.0341,4356.9,4356.8,3.11820947]
[1756997087836,1.0341,4356.9,4356.8,3.11803559]
[1756997089048,2.4299,4356.9,4356.8,0.236]
[1756997089940,2.4299,4356.9,4356.8,3.11803559]
[1756997090141,1.7153,4356.9,4356.8,3.11803559]
[1756997090337,1.7153,4356.9,4356.8,2.88203559]
[1756997090546,2.4299,4356.9,4356.8,3.11803559]
[1756997091545,2.4299,4356.9,4356.8,0.236]
[1756997091851,1.7153,4356.9,4356.8,0.236]
[1756997092051,1.0341,4356.9,4356.8,0.236]
[1756997093149,1.7153,4356.9,4356.8,0.236]
[1756997095353,2.4299,4356.9,4356.8,0.236]
[1756997095949,1.114,4356.5,4356.4,4.08853222]
[1756997096154,2.1481,4356.5,4356.4,4.32453222]
[1756997097157,1.4669,4356.5,4356.4,4.32453222]
[1756997097558,1.114,4356.5,4356.4,0.236]
[1756997098161,2.1481,4356.5,4356.4,0.236]
[1756997098364,2.1481,4356.5,4356.1,4.12217359]
[1756997098365,2.4299,4356.2,4356.1,4.12217359]
[1756997098570,2.4299,4356.2,4356.1,4.35817359]
[1756997098571,1.0341,4356.2,4356.1,4.35817359]
[1756997099069,1.0341,4356.4,4356.1,0.27595025]
[1756997099262,0.4328,4356.5,4356.1,0.27595025]
[1756997099462,2.1481,4356.5,4356.4,2.88185181]
[1756997099765,2.1481,4356.5,4356.4,3.11785181]
[1756997100269,2.8627,4356.5,4356.1,0.03995025]
[1756997100459,2.8627,4356.5,4356.4,3.11803426]
[1756997101166,2.8627,4356.5,4356.4,0.236]
[1756997101866,2.4299,4356.4,4356.3,2.88203426]
[1756997102065,2.4299,4356.4,4356.3,0.236]
[1756997102261,1.0341,4356.3,4356.2,2.88203426]
[1756997102467,2.4299,4356.3,4356.2,3.11803426]
[1756997103273,2.4299,4356.3,4356.2,4.47209652]
[1756997103569,2.4299,4356.3,4356.2,3.11803426]
[1756997104174,2.4299,4356.3,4356.2,4.47209652]
[1756997104676,1.7153,4356.3,4356.2,4.47209652]
[1756997104869,1.0341,4356.4,4356.2,1.59006226]
[1756997105075,0.4328,4356.5,4356.2,1.59006226]
[1756997105376,0.6812,4356.3,4356.2,1.59006226]
[1756997105676,2.4299,4356.3,4356.2,1.59006226]
[1756997108182,2.4299,4356.3,4356.2,1.35406226]
[1756997108380,2.4299,4356.3,4356.2,1.59006226]
[1756997109877,2.4299,4356.3,4356.2,1.35406226]
[1756997110181,0.4328,4356.0,4355.8,5.4362856]
[1756997110376,2.4299,4355.9,4355.8,1.35406226]
[1756997110981,2.4299,4355.9,4355.8,1.59006226]
[1756997111282,1.3958,4355.6,4355.5,31.67]
[1756997111483,2.4299,4355.6,4355.5,36.14546906]
[1756997112774,2.4299,4355.6,4355.5,34.5554068]
[1756997113079,2.4299,4355.6,4355.5,31.906]
[1756997114089,2.4322,4355.2,4355.1,1.8014068]
[1756997114378,0.3981,4354.0,4353.8,31.673]
[1756997114584,2.8303,4354.0,4353.9,0.96]
[1756997114779,0.3981,4354.5,4353.9,2.3021]
[1756997115087,1.783,4355.0,4354.9,0.724]
[1756997115280,1.783,4355.0,4354.9,0.96]
[1756997115480,1.783,4355.0,4354.9,0.236]
[1756997116182,1.783,4355.0,4354.9,3.97766226]
[1756997116387,1.3849,4355.0,4354.9,3.97766226]
[1756997116686,1.3849,4355.0,4354.9,2.6236]
[1756997116887,2.8303,4355.0,4354.9,0.96]
[1756997117576,2.8303,4355.0,4354.9,0.236]
[1756997118487,2.8303,4355.0,4354.9,2.3876]
[1756997118784,2.8303,4355.0,4354.9,0.96]
[1756997118983,1.3849,4354.8,4354.7,2.05767345]
[1756997119187,2.4322,4354.8,4354.7,2.05767345]
[1756997119378,2.4322,4354.8,4354.7,0.236]
[1756997119687,2.4322,4354.8,4354.7,1.6217]
[1756997120081,2.4322,4354.8,4354.7,4.68127345]
[1756997120588,1.0473,4355.4,4355.3,0.724]
[1756997120792,2.4322,4355.4,4355.3,0.236]
[1756997121090,3.78626226,4355.4,4355.3,0.236]
[1756997121284,3.78626226,4355.4,4354.5,2.05767345]
[1756997121486,0.3981,4355.5,4353.7,0.18799131]
[1756997121487,1.3849,4354.6,4354.4,2.05767345]
[1756997121686,1.783,4355.0,4354.9,1.3857]
[1756997121880,0.3981,4355.5,4354.9,3.97766226]
[1756997122086,0.3981,4355.5,4355.0,2.3876]
[1756997122087,1.3849,4355.1,4355.0,2.3876]
[1756997122287,2.4322,4355.1,4355.0,2.3876]
[1756997122887,0.7179,4355.1,4355.0,2.3876]
[1756997123091,1.0473,4355.4,4355.0,2.7913]
[1756997123288,0.7179,4355.3,4355.2,2.73976226]
[1756997123599,2.4322,4355.3,4355.2,3.97766226]
[1756997124090,2.4322,4355.3,4355.2,1.6217]
[1756997124484,1.0473,4355.9,4355.3,1.0019]
[1756997124689,1.7652,4355.5,4355.4,2.6236]
[1756997124889,2.4322,4355.5,4355.4,2.6236]
[1756997125794,0.3981,4355.5,4355.1,2.05767345]
[1756997125986,0.3981,4355.0,4354.9,2.78167345]
[1756997126188,2.8303,4355.0,4354.9,3.01767345]
[1756997126397,2.8303,4355.0,4354.9,2.05767345]
[1756997126596,2.8303,4355.0,4354.9,0.236]
[1756997127083,0.3981,4354.5,4354.4,2.05767345]
[1756997127395,1.3849,4354.4,4354.2,2.05767345]
[1756997127594,2.4322,4354.3,4354.2,2.05767345]
[1756997127793,1.0473,4354.2,4354.1,2.05767345]
[1756997127995,2.4322,4354.2,4354.1,0.724]
[1756997128490,2.4322,4354.2,4354.1,0.96]
[1756997128692,1.23185129,4358.1,4354.1,0.96]
[1756997128693,2.4322,4355.1,4354.6,1.0019]
[1756997128893,2.4322,4354.8,4354.7,0.96]
[1756997129091,2.4322,4354.8,4354.7,0.236]
[1756997129495,2.4322,4354.8,4354.7,2.6236]
[1756997129894,0.3981,4355.0,4354.7,2.6236]
[1756997129895,1.0473,4355.1,4354.7,3.6759966]
[1756997130097,0.7179,4355.2,4355.1,1.3857]
[1756997130295,1.7652,4355.2,4355.1,2.6236]
[1756997130497,2.4322,4355.2,4355.1,2.6236]
[1756997130696,0.7179,4355.2,4355.1,2.6236]
[1756997130897,1.7652,4355.2,4355.1,2.6236]
[1756997131097,2.4322,4355.2,4355.1,0.236]
[1756997131495,2.4322,4355.2,4355.0,2.0542966]
[1756997131496,1.0473,4355.1,4355.0,2.0542966]
[1756997131788,2.4322,4355.1,4355.0,0.236]
[1756997132099,1.3849,4354.8,4354.7,2.0542966]
[1756997132396,2.4322,4354.8,4354.7,0.236]
[1756997134597,1.3849,4354.8,4354.6,2.0542966]
[1756997134802,1.0473,4354.7,4354.6,2.0542966]
[1756997134996,2.4322,4354.7,4354.6,2.2902966]
[1756997135694,2.4322,4354.7,4354.6,2.0542966]
[1756997135896,1.0473,4354.6,4354.5,2.0542966]
[1756997136098,2.4322,4354.6,4354.5,0.236]
[1756997136897,1.3849,4354.4,4354.3,2.0542966]
[1756997137202,1.0473,4354.3,4354.1,2.0542966]
[1756997137400,1.3849,4354.3,4354.2,0.236]
[1756997138099,2.4322,4354.3,4354.2,0.236]
[1756997139294,1.0473,4354.2,4354.0,2.0542966]
[1756997139494,2.4322,4354.2,4354.1,2.2902966]
[1756997140402,2.4322,4354.2,4354.1,0.236]
[1756997140696,1.0473,4354.2,4354.1,0.236]
[1756997141202,1.7652,4354.2,4354.1,0.236]
[1756997141403,1.0473,4354.1,4354.0,2.87394157]
[1756997141698,1.0473,4354.1,4354.0,0.236]
[1756997141699,2.4322,4354.1,4354.0,0.236]
[1756997141895,0.3981,4354.0,4353.9,2.87394157]
[1756997142096,1.783,4354.0,4353.8,31.673]
[1756997142298,1.0473,4353.9,4353.8,31.673]
[1756997142498,1.0473,4353.9,4353.8,31.909]
[1756997145103,1.0473,4353.9,4353.8,31.673]
[1756997145403,1.0473,4353.9,4353.8,31.909]
[1756997145807,1.0752,4354.2,4353.8,35.909]
[1756997145997,1.0752,4355.6,4354.0,1.03323]
[1756997146198,1.4733,4355.5,4355.2,4.55516537]
[1756997146500,1.0752,4355.4,4355.3,0.236]
[1756997146699,1.79,4355.4,4355.3,0.236]
[1756997147006,1.0752,4355.3,4354.8,4.08222334]
[1756997147207,0.4241,4355.0,4354.9,0.236]
[1756997147503,0.3981,4355.5,4354.9,0.46561]
[1756997147703,1.4733,4355.5,4355.4,2.8814086]
[1756997147900,2.1881,4355.5,4355.4,3.1174086]
[1756997148302,1.4733,4355.5,4355.4,3.1174086]
[1756997149306,1.4733,4355.5,4355.4,0.236]
[1756997150310,2.1881,4355.5,4355.4,0.236]
[1756997150504,2.472,4355.3,4355.2,2.8814086]
[1756997150702,2.472,4355.3,4355.2,3.1174086]
[1756997150903,1.3968,4355.3,4355.2,0.236]
[1756997151103,1.3968,4355.3,4355.2,2.05704567]
[1756997151403,2.472,4355.3,4355.2,0.236]
[1756997152510,1.0752,4355.2,4355.1,2.05704567]
[1756997152711,2.472,4355.2,4355.1,2.29304567]
[1756997153909,2.472,4355.2,4355.1,0.236]
[1756997154707,1.3968,4355.2,4355.0,2.05704567]
[1756997154909,2.472,4355.2,4355.1,2.29318955]
[1756997155311,1.3968,4355.2,4355.1,0.236]
[1756997155609,1.3968,4355.2,4355.1,2.29318955]
[1756997155809,1.3968,4355.2,4355.1,0.236]
[1756997156006,2.472,4355.2,4355.1,0.236]
[1756997157009,2.2141,4355.0,4354.9,2.05718955]
[1756997157213,2.2141,4355.0,4354.5,2.8814086]
[1756997157403,1.79,4354.9,4354.5,2.8814086]
[1756997157606,0.4241,4355.0,4354.5,2.8814086]
[1756997157807,1.0752,4354.8,4354.6,0.236]
[1756997158007,1.0752,4354.7,4354.6,0.236]
[1756997158209,1.0752,4354.7,4354.5,2.8814086]
[1756997158516,0.4241,4355.0,4354.5,2.8814086]
[1756997158517,1.0752,4354.9,4354.6,3.1174086]